fUSD/lending_fUSD_20250105
["ID","MTS","AMOUNT","RATE_DAILY","PERIOD"]
[347689165,1736064648190,-1915.36,9.998e-05,2]
[347689166,1736064648199,-500.0,9.998e-05,2]
[347689167,1736064648208,-500.0,9.998e-05,2]
[347689168,1736064648217,-573.5,9.998e-05,2]
[347689169,1736064648226,-1000.0,9.999e-05,2]
[347689170,1736064648235,-500.0,9.999e-05,2]
[347689171,1736064648244,-500.0,9.999e-05,2]
[347689172,1736064648253,-12143.5397993,9.999e-05,2]
[347689173,1736064648262,-3291.9448904,9.999e-05,2]
[347689174,1736064648272,-1086.4665741,9.999e-05,2]
[347689175,1736064648282,-940.6161482,9.999e-05,2]
[347689176,1736064648291,-27827.78336422,0.0001,2]
[347689177,1736064648306,-4471.9,0.0001,2]
[347689178,1736064649636,-500.0,9.995e-05,2]
[347689179,1736064649646,-36579.6228439,0.0001,2]
[347689180,1736064649659,-392.1681772,0.0001,2]
[347689181,1736064650329,-1481.32977534,0.0001,2]
[347689182,1736064650341,-272.3715,0.0001,2]
[347689183,1736064650352,-4329.8740396,0.0001,2]
[347689184,1736064650370,-293.9514975,0.0001,2]
[347689185,1736064810783,150.0,0.00014745,120]
[347689186,1736064870771,150.0,0.00018423,120]
[347689187,1736064917000,-188.18,7.397e-05,2]
[347689188,1736064931412,150.0,0.00020464,120]
[347689190,1736064990755,150.0,0.00021328,120]
[347689191,1736065051197,150.0,0.00021343,120]
[347689192,1736065110753,150.0,0.0002089,120]
[347689193,1736065114589,-500.0,9.995e-05,7]
[347689196,1736065290898,150.0,0.00018217,120]
[347689197,1736065294295,186.6092479,0.00022,120]
[347689198,1736065355423,220.0,0.00018,90]
[347689199,1736065369479,373.09851788,0.00018,90]
[347689200,1736065391203,500.0,0.00021999,120]
[347689201,1736065393844,2000.0,0.00021999,120]
[347689202,1736065397682,500.0,0.00021999,120]
[347689205,1736065431389,200.0,0.00021999,120]
[347689206,1736065530755,150.0,0.00021499,120]
[347689209,1736065599133,-511.95677434,8.219e-05,2]
[347689222,1736065832171,-203.01322566,8.219e-05,2]
[347689223,1736065832181,-4000.0,9e-05,3]
[347689224,1736065832191,-488.52,9.006e-05,2]
[347689225,1736065832202,-1224.39,9.06e-05,2]
[347689226,1736065832212,-250.0,9.075e-05,2]
[347689227,1736065832221,-536.07,9.09e-05,2]
[347689228,1736065832230,-250.0,9.164e-05,2]
[347689229,1736065832240,-150.0,9.173e-05,2]
[347689230,1736065832249,-150.0,9.173e-05,2]
[347689231,1736065832259,-150.0,9.173e-05,2]
[347689232,1736065832268,-176.7,9.202e-05,2]
[347689233,1736065832277,-316.001,9.5e-05,2]
[347689234,1736065832289,-150.0,9.512e-05,2]
[347689235,1736065832299,-858.7511,9.696e-05,2]
[347689236,1736065832309,-300.0,9.79e-05,2]
[347689237,1736065832319,-720.046,9.794e-05,2]
[347689238,1736065832329,-6594.74812892,9.794e-05,2]
[347689239,1736065832343,-198.32597108,9.794e-05,2]
[347689240,1736065832352,-351.67402892,9.794e-05,2]
[347689241,1736065832376,-1641.04428466,9.794e-05,2]
[347689242,1736065835268,-42.87908642,9.794e-05,2]
[347689243,1736065835277,-311.4188,9.794e-05,2]
[347689244,1736065835288,-1225.0,9.8e-05,2]
[347689245,1736065835299,-150.0,9.852e-05,2]
[347689246,1736065835309,-733.10583918,9.894e-05,2]
[347689248,1736065835357,-1936.90466082,9.894e-05,2]
[347689250,1736065835368,-316.6985838,9.894e-05,2]
[347689252,1736065835379,-478.31588386,9.894e-05,2]
[347689302,1736065838142,-562.48140947,9.894e-05,2]
[347689303,1736065838192,-3338.77346761,9.894e-05,2]
[347689304,1736065838247,-2254.88152453,9.894e-05,2]
[347689305,1736065838259,-633.33493073,9.894e-05,2]
[347689306,1736065838268,-63373.75115311,9.894e-05,2]
[347689307,1736065838279,-9624.74887865,9.894e-05,2]
[347689308,1736065838290,-998.39519968,9.894e-05,2]
[347689309,1736065838300,-746.00526567,9.894e-05,2]
[347689310,1736065838365,-91577.65950289,9.894e-05,2]
[347689311,1736065838375,-2569.836,9.895e-05,2]
[347689312,1736065838384,-500.0,9.895e-05,2]
[347689313,1736065838393,-5000.0,9.895e-05,2]
[347689314,1736065838402,-1752.7893,9.899e-05,2]
[347689315,1736065838411,-293.409343,9.9e-05,2]
[347689316,1736065838420,-500.0,9.991e-05,2]
[347689317,1736065838429,-3619.63,9.991e-05,2]
[347689318,1736065838439,-5482.48,9.991e-05,2]
[347689319,1736065838448,-3412.17,9.991e-05,2]
[347689320,1736065838458,-2850.5,9.991e-05,2]
[347689321,1736065838467,-4849.52,9.991e-05,2]
[347689323,1736065838476,-500.0,9.991e-05,2]
[347689324,1736065838485,-502.61,9.991e-05,2]
[347689325,1736065838494,-500.0,9.991e-05,2]
[347689326,1736065838504,-500.0,9.991e-05,2]
[347689327,1736065838513,-500.0,9.991e-05,2]
[347689328,1736065838522,-500.0,9.991e-05,2]
[347689329,1736065838531,-500.0,9.991e-05,2]
[347689331,1736065838540,-500.0,9.991e-05,2]
[347689332,1736065838549,-1481.66,9.991e-05,2]
[347689333,1736065838558,-500.0,9.991e-05,2]
[347689334,1736065838567,-500.0,9.991e-05,2]
[347689335,1736065838576,-500.0,9.991e-05,2]
[347689336,1736065838584,-500.0,9.991e-05,2]
[347689337,1736065838593,-500.0,9.991e-05,2]
[347689338,1736065838602,-1127.73,9.991e-05,2]
[347689339,1736065838611,-500.0,9.991e-05,2]
[347689340,1736065838620,-500.0,9.991e-05,2]
[347689342,1736065838629,-1753.11,9.991e-05,2]
[347689344,1736065838639,-500.0,9.991e-05,2]
[347689346,1736065838648,-970.35,9.992e-05,2]
[347689348,1736065838657,-2092.08,9.992e-05,2]
[347689350,1736065838666,-1163.71,9.992e-05,2]
[347689352,1736065838675,-4129.92,9.992e-05,2]
[347689354,1736065838684,-2106.38,9.992e-05,2]
[347689356,1736065838693,-3677.11,9.992e-05,2]
[347689358,1736065838702,-12378.36,9.992e-05,2]
[347689359,1736065838712,-500.0,9.992e-05,2]
[347689361,1736065838722,-1356.12,9.992e-05,2]
[347689363,1736065838731,-1453.63,9.992e-05,2]
[347689364,1736065838739,-723.65,9.992e-05,2]
[347689366,1736065838749,-3338.42,9.992e-05,2]
[347689367,1736065838758,-2579.13,9.992e-05,2]
[347689368,1736065838767,-5248.86,9.992e-05,2]
[347689369,1736065838776,-1390.74,9.992e-05,2]
[347689370,1736065838785,-790.71,9.992e-05,2]
[347689371,1736065838793,-1567.64,9.992e-05,2]
[347689372,1736065838802,-500.0,9.993e-05,2]
[347689373,1736065838811,-568.97,9.993e-05,2]
[347689374,1736065838820,-500.0,9.993e-05,2]
[347689375,1736065838830,-211.72,9.993e-05,2]
[347689376,1736065838839,-500.0,9.993e-05,2]
[347689377,1736065838848,-500.0,9.993e-05,2]
[347689378,1736065838857,-500.0,9.993e-05,2]
[347689379,1736065838867,-825.33,9.993e-05,2]
[347689380,1736065838877,-500.0,9.993e-05,2]
[347689381,1736065838886,-685.49,9.993e-05,2]
[347689382,1736065838895,-614.41,9.993e-05,2]
[347689383,1736065838904,-500.0,9.993e-05,2]
[347689384,1736065838913,-500.0,9.993e-05,2]
[347689385,1736065838922,-500.0,9.993e-05,2]
[347689386,1736065838932,-500.0,9.993e-05,2]
[347689387,1736065838941,-500.0,9.993e-05,2]
[347689388,1736065838950,-539.17,9.993e-05,2]
[347689389,1736065838961,-514.99,9.993e-05,2]
[347689390,1736065838971,-500.0,9.993e-05,2]
[347689391,1736065838981,-568.88,9.993e-05,2]
[347689392,1736065838990,-678.82,9.993e-05,2]
[347689393,1736065838999,-500.0,9.993e-05,2]
[347689394,1736065839009,-556.88,9.993e-05,2]
[347689395,1736065839019,-500.0,9.993e-05,2]
[347689396,1736065839028,-500.0,9.993e-05,2]
[347689397,1736065839038,-500.0,9.993e-05,2]
[347689398,1736065839047,-500.0,9.993e-05,2]
[347689399,1736065839057,-500.0,9.993e-05,2]
[347689400,1736065839066,-500.0,9.993e-05,2]
[347689401,1736065839076,-1000.0,9.993e-05,2]
[347689402,1736065839085,-1000.0,9.993e-05,2]
[347689403,1736065839095,-1000.0,9.993e-05,2]
[347689404,1736065839104,-1000.0,9.993e-05,2]
[347689405,1736065839113,-1000.0,9.993e-05,2]
[347689406,1736065839122,-500.0,9.993e-05,2]
[347689407,1736065839132,-1111.0,9.993e-05,2]
[347689408,1736065839140,-557.78,9.993e-05,2]
[347689409,1736065839150,-1000.0,9.993e-05,3]
[347689410,1736065839159,-1000.0,9.993e-05,3]
[347689411,1736065839168,-441.36,9.993e-05,2]
[347689412,1736065839177,-1000.0,9.993e-05,2]
[347689413,1736065839186,-261.84,9.993e-05,2]
[347689414,1736065839195,-833.81,9.993e-05,2]
[347689415,1736065839210,-500.0,9.993e-05,2]
[347689416,1736065839219,-500.0,9.993e-05,2]
[347689417,1736065839228,-500.0,9.993e-05,2]
[347689418,1736065839237,-500.0,9.993e-05,2]
[347689419,1736065839246,-500.0,9.993e-05,2]
[347689420,1736065839256,-271.09,9.993e-05,2]
[347689421,1736065839265,-500.0,9.993e-05,2]
[347689422,1736065839274,-500.0,9.993e-05,2]
[347689423,1736065839284,-481.05,9.993e-05,2]
[347689424,1736065839292,-535.68,9.993e-05,2]
[347689425,1736065839302,-500.0,9.993e-05,2]
[347689426,1736065839311,-500.0,9.993e-05,2]
[347689427,1736065839320,-500.0,9.993e-05,2]
[347689428,1736065839328,-500.0,9.993e-05,2]
[347689429,1736065839338,-500.0,9.993e-05,2]
[347689430,1736065839347,-500.0,9.993e-05,2]
[347689431,1736065839355,-625.56,9.993e-05,2]
[347689432,1736065839364,-500.0,9.993e-05,2]
[347689433,1736065839543,-500.0,9.993e-05,2]
[347689434,1736065839552,-500.0,9.993e-05,2]
[347689435,1736065839561,-500.0,9.993e-05,2]
[347689436,1736065839571,-500.0,9.993e-05,2]
[347689437,1736065839582,-500.0,9.993e-05,2]
[347689438,1736065839592,-500.0,9.993e-05,2]
[347689439,1736065839601,-500.0,9.993e-05,2]
[347689440,1736065839610,-500.0,9.993e-05,2]
[347689441,1736065839619,-567.33,9.993e-05,2]
[347689442,1736065839628,-500.0,9.993e-05,2]
[347689443,1736065839638,-500.0,9.993e-05,2]
[347689444,1736065839646,-500.0,9.993e-05,2]
[347689445,1736065839655,-505.91,9.993e-05,2]
[347689446,1736065839664,-568.89,9.993e-05,2]
[347689447,1736065839673,-500.0,9.993e-05,2]
[347689448,1736065839682,-395.05885063,9.993e-05,2]
[347689449,1736065839690,-500.0,9.993e-05,2]
[347689450,1736065839699,-500.0,9.993e-05,2]
[347689451,1736065839709,-538.88,9.993e-05,2]
[347689452,1736065839719,-500.0,9.993e-05,2]
[347689453,1736065839728,-500.0,9.993e-05,2]
[347689454,1736065839739,-637.75,9.993e-05,2]
[347689455,1736065839748,-500.0,9.993e-05,2]
[347689456,1736065839757,-564.26,9.993e-05,2]
[347689457,1736065839766,-500.0,9.993e-05,2]
[347689458,1736065839776,-500.0,9.993e-05,2]
[347689459,1736065839785,-500.0,9.993e-05,2]
[347689460,1736065839793,-500.0,9.993e-05,2]
[347689461,1736065839802,-1392.34,9.993e-05,2]
[347689462,1736065839812,-548.89,9.993e-05,2]
[347689463,1736065839820,-500.0,9.993e-05,2]
[347689464,1736065839830,-500.0,9.993e-05,2]
[347689465,1736065839839,-500.0,9.993e-05,2]
[347689466,1736065839849,-500.0,9.993e-05,2]
[347689467,1736065839858,-500.0,9.993e-05,2]
[347689468,1736065839868,-500.0,9.993e-05,2]
[347689469,1736065839878,-500.0,9.993e-05,2]
[347689470,1736065839887,-500.0,9.993e-05,2]
[347689471,1736065839897,-500.0,9.993e-05,2]
[347689472,1736065839906,-500.0,9.993e-05,2]
[347689473,1736065839915,-500.0,9.993e-05,2]
[347689474,1736065839926,-500.0,9.993e-05,2]
[347689476,1736065839935,-510.08720482,9.993e-05,2]
[347689477,1736065839944,-500.0,9.993e-05,2]
[347689478,1736065839953,-221.80564348,9.993e-05,2]
[347689479,1736065839963,-500.0,9.993e-05,2]
[347689480,1736065839973,-500.0,9.993e-05,2]
[347689481,1736065839982,-500.0,9.993e-05,2]
[347689482,1736065839991,-510.22645008,9.993e-05,2]
[347689483,1736065840000,-500.0,9.993e-05,2]
[347689484,1736065840009,-500.0,9.993e-05,2]
[347689485,1736065840018,-515.85181013,9.993e-05,2]
[347689486,1736065840027,-500.0,9.993e-05,2]
[347689487,1736065840036,-500.46267609,9.993e-05,2]
[347689488,1736065840046,-500.19013339,9.993e-05,2]
[347689489,1736065840055,-3254.26,9.993e-05,2]
[347689490,1736065840064,-500.0,9.993e-05,2]
[347689491,1736065840073,-500.0,9.993e-05,2]
[347689493,1736065840083,-500.0,9.993e-05,2]
[347689494,1736065840092,-2273.32,9.993e-05,2]
[347689495,1736065840101,-500.0,9.993e-05,2]
[347689496,1736065840111,-500.0,9.993e-05,2]
[347689497,1736065840119,-500.0,9.993e-05,2]
[347689498,1736065840127,-500.0,9.993e-05,2]
[347689499,1736065840136,-500.0,9.993e-05,2]
[347689500,1736065840146,-517.33796657,9.993e-05,2]
[347689501,1736065840155,-500.0,9.993e-05,2]
[347689502,1736065840165,-500.0,9.993e-05,2]
[347689503,1736065840173,-500.0,9.993e-05,2]
[347689504,1736065840182,-500.0,9.993e-05,2]
[347689505,1736065840192,-2300.97,9.994e-05,2]
[347689506,1736065840202,-500.0,9.994e-05,2]
[347689507,1736065840212,-500.0,9.994e-05,2]
[347689508,1736065840221,-500.0,9.994e-05,2]
[347689509,1736065840230,-500.0,9.994e-05,2]
[347689510,1736065840239,-5415.16,9.994e-05,2]
[347689511,1736065840248,-506.0870619,9.994e-05,2]
[347689512,1736065840257,-504.12861252,9.994e-05,2]
[347689513,1736065840267,-500.0,9.994e-05,2]
[347689514,1736065840276,-847.61,9.994e-05,2]
[347689515,1736065840285,-500.0,9.994e-05,2]
[347689516,1736065840295,-500.0,9.994e-05,2]
[347689517,1736065840304,-500.0,9.994e-05,2]
[347689518,1736065840314,-534.85,9.994e-05,2]
[347689519,1736065840323,-500.0,9.994e-05,2]
[347689520,1736065840332,-500.0,9.994e-05,2]
[347689521,1736065840342,-500.0,9.994e-05,2]
[347689522,1736065840351,-182.07633552,9.994e-05,2]
[347689523,1736065840360,-500.0,9.994e-05,2]
[347689524,1736065840369,-500.0,9.994e-05,2]
[347689525,1736065840379,-500.0,9.994e-05,2]
[347689526,1736065840388,-500.0,9.994e-05,2]
[347689527,1736065840397,-512.46780522,9.994e-05,2]
[347689528,1736065840407,-500.0,9.994e-05,2]
[347689529,1736065840418,-500.0,9.994e-05,2]
[347689530,1736065840427,-500.0,9.994e-05,2]
[347689531,1736065840437,-500.88810717,9.994e-05,2]
[347689532,1736065840447,-500.0,9.994e-05,2]
[347689533,1736065840456,-500.0,9.994e-05,2]
[347689534,1736065840466,-641.41503818,9.994e-05,2]
[347689535,1736065840475,-500.0,9.994e-05,2]
[347689536,1736065840484,-500.0,9.994e-05,2]
[347689537,1736065840493,-500.0,9.994e-05,2]
[347689538,1736065840503,-500.0,9.994e-05,2]
[347689539,1736065840513,-500.0,9.994e-05,2]
[347689540,1736065840522,-500.47732164,9.994e-05,2]
[347689541,1736065840531,-324.52,9.994e-05,2]
[347689542,1736065840542,-500.0,9.994e-05,2]
[347689543,1736065840552,-500.0,9.994e-05,2]
[347689544,1736065840562,-500.0,9.994e-05,2]
[347689545,1736065840571,-629.42,9.994e-05,2]
[347689546,1736065840581,-500.34,9.994e-05,2]
[347689547,1736065840591,-500.0,9.994e-05,2]
[347689548,1736065840601,-606.58897303,9.994e-05,2]
[347689549,1736065840610,-500.0,9.994e-05,2]
[347689550,1736065840618,-500.0,9.994e-05,2]
[347689551,1736065840627,-500.0,9.994e-05,2]
[347689552,1736065840637,-500.0,9.994e-05,2]
[347689553,1736065840646,-500.0,9.994e-05,2]
[347689554,1736065840655,-500.0,9.994e-05,2]
[347689555,1736065840664,-500.0,9.994e-05,2]
[347689556,1736065840673,-500.0,9.994e-05,2]
[347689558,1736065840682,-500.0,9.994e-05,2]
[347689559,1736065840691,-500.0,9.994e-05,2]
[347689560,1736065840699,-500.0,9.994e-05,2]
[347689561,1736065840709,-500.0,9.994e-05,2]
[347689562,1736065840717,-500.0,9.994e-05,2]
[347689563,1736065840726,-500.0,9.994e-05,2]
[347689564,1736065840736,-500.0,9.994e-05,2]
[347689565,1736065840745,-766.87,9.994e-05,2]
[347689566,1736065840754,-500.0,9.994e-05,2]
[347689567,1736065840763,-500.0,9.994e-05,2]
[347689568,1736065840772,-500.0,9.994e-05,2]
[347689569,1736065840781,-500.0,9.994e-05,2]
[347689570,1736065840790,-500.0,9.994e-05,2]
[347689571,1736065840799,-500.0,9.994e-05,2]
[347689572,1736065840808,-500.0,9.994e-05,2]
[347689573,1736065840817,-506.93,9.994e-05,2]
[347689574,1736065840826,-500.0,9.994e-05,2]
[347689575,1736065840835,-500.0,9.994e-05,2]
[347689576,1736065840845,-500.0,9.994e-05,2]
[347689577,1736065840855,-500.0,9.994e-05,2]
[347689578,1736065840863,-500.0,9.994e-05,2]
[347689579,1736065840873,-500.0,9.994e-05,2]
[347689580,1736065840882,-487.76,9.994e-05,2]
[347689581,1736065840891,-600.73,9.994e-05,2]
[347689582,1736065840901,-577.41,9.994e-05,2]
[347689583,1736065840910,-718.39,9.994e-05,2]
[347689584,1736065840919,-218.34,9.994e-05,2]
[347689585,1736065840929,-500.0,9.994e-05,2]
[347689586,1736065840938,-7090.02,9.994e-05,2]
[347689587,1736065840947,-1060.77,9.994e-05,2]
[347689588,1736065840957,-504.34064483,9.995e-05,2]
[347689589,1736065840966,-490.44,9.995e-05,2]
[347689590,1736065840975,-5000.0,9.995e-05,2]
[347689591,1736065840984,-574.23,9.995e-05,2]
[347689592,1736065840994,-183.23,9.995e-05,2]
[347689593,1736065841004,-1014.05,9.995e-05,2]
[347689594,1736065841014,-500.0,9.995e-05,2]
[347689595,1736065841023,-500.0,9.995e-05,2]
[347689596,1736065841032,-461.26,9.995e-05,2]
[347689597,1736065841041,-500.0,9.995e-05,2]
[347689598,1736065841051,-979.36,9.995e-05,2]
[347689599,1736065841060,-500.0,9.995e-05,2]
[347689600,1736065841070,-500.0,9.995e-05,2]
[347689601,1736065841079,-500.0,9.995e-05,2]
[347689602,1736065841088,-168.78,9.995e-05,2]
[347689603,1736065841097,-4469.24,9.995e-05,2]
[347689604,1736065841106,-4410.04,9.995e-05,2]
[347689605,1736065841115,-4707.53,9.995e-05,2]
[347689606,1736065841127,-500.0,9.995e-05,2]
[347689607,1736065841136,-500.0,9.995e-05,2]
[347689608,1736065841144,-4662.93,9.995e-05,2]
[347689609,1736065841154,-18005.43,9.995e-05,2]
[347689610,1736065841163,-4099.61,9.995e-05,2]
[347689611,1736065841172,-500.0,9.995e-05,2]
[347689612,1736065841181,-697.08,9.995e-05,2]
[347689613,1736065841190,-500.0,9.995e-05,2]
[347689614,1736065841201,-500.0,9.995e-05,2]
[347689615,1736065841211,-500.0,9.995e-05,2]
[347689616,1736065841220,-500.0,9.995e-05,2]
[347689617,1736065841229,-500.0,9.995e-05,2]
[347689618,1736065841238,-500.0,9.995e-05,2]
[347689619,1736065841247,-500.0,9.995e-05,2]
[347689620,1736065841256,-500.0,9.998e-05,2]
[347689621,1736065841266,-1482.7,9.999e-05,2]
[347689622,1736065841275,-1276.88,9.999e-05,2]
[347689623,1736065841284,-799.19,9.999e-05,2]
[347689624,1736065841293,-1616.37,9.999e-05,2]
[347689625,1736065841302,-500.0,9.999e-05,2]
[347689626,1736065841311,-598.75,9.999e-05,2]
[347689627,1736065841320,-500.0,9.999e-05,2]
[347689628,1736065841329,-500.0,9.999e-05,2]
[347689629,1736065841339,-500.0,9.999e-05,2]
[347689630,1736065841348,-500.0,9.999e-05,2]
[347689631,1736065841357,-500.0,9.999e-05,2]
[347689632,1736065841366,-531.57,9.999e-05,2]
[347689633,1736065841375,-500.0,9.999e-05,2]
[347689634,1736065841385,-500.0,9.999e-05,2]
[347689635,1736065841394,-500.0,9.999e-05,2]
[347689636,1736065841403,-500.0,9.999e-05,2]
[347689637,1736065841411,-1188.53,9.999e-05,2]
[347689638,1736065841421,-500.0,9.999e-05,2]
[347689639,1736065841430,-500.0,9.999e-05,2]
[347689640,1736065841439,-500.0,9.999e-05,2]
[347689641,1736065841448,-344.0849957,9.999e-05,2]
[347689642,1736065841814,-474.44416233,9.993e-05,2]
[347689643,1736065841834,-25.55583767,9.993e-05,2]
[347689644,1736065841843,-367.76567338,9.994e-05,2]
[347689645,1736065841865,-270.40432662,9.994e-05,2]
[347689646,1736065841875,-155.9150043,9.999e-05,2]
[347689647,1736065841884,-500.0,9.999e-05,2]
[347689648,1736065841894,-500.0,9.999e-05,2]
[347689649,1736065841903,-500.0,9.999e-05,2]
[347689650,1736065841912,-500.0,9.999e-05,2]
[347689651,1736065841921,-500.0,9.999e-05,2]
[347689652,1736065841930,-500.0,9.999e-05,2]
[347689653,1736065841939,-500.0,9.999e-05,2]
[347689654,1736065841950,-500.0,9.999e-05,2]
[347689655,1736065841960,-500.0,9.999e-05,2]
[347689656,1736065841969,-500.0,9.999e-05,2]
[347689657,1736065841978,-500.0,9.999e-05,2]
[347689658,1736065841987,-500.0,9.999e-05,2]
[347689659,1736065841997,-500.0,9.999e-05,2]
[347689660,1736065842006,-500.0,9.999e-05,2]
[347689661,1736065842016,-500.0,9.999e-05,2]
[347689662,1736065842025,-500.0,9.999e-05,2]
[347689663,1736065842034,-1644.04,9.999e-05,2]
[347689664,1736065842043,-500.0,9.999e-05,2]
[347689665,1736065842053,-500.0,9.999e-05,2]
[347689666,1736065842062,-500.0,9.999e-05,2]
[347689667,1736065842071,-500.0,9.999e-05,2]
[347689668,1736065842080,-500.0,9.999e-05,2]
[347689669,1736065842089,-500.0,9.999e-05,2]
[347689670,1736065842098,-500.0,9.999e-05,2]
[347689671,1736065842107,-500.0,9.999e-05,2]
[347689672,1736065842117,-500.0,9.999e-05,2]
[347689673,1736065842126,-500.0,9.999e-05,2]
[347689674,1736065842135,-500.0,9.999e-05,2]
[347689675,1736065842144,-500.0,9.999e-05,2]
[347689676,1736065842153,-500.0,9.999e-05,2]
[347689677,1736065842162,-600.82,9.999e-05,2]
[347689678,1736065842171,-500.0,9.999e-05,2]
[347689679,1736065842180,-500.0,9.999e-05,2]
[347689680,1736065842189,-500.0,9.999e-05,2]
[347689681,1736065842200,-500.0,9.999e-05,2]
[347689682,1736065842211,-500.0,9.999e-05,2]
[347689683,1736065842220,-500.0,9.999e-05,2]
[347689684,1736065842229,-500.0,9.999e-05,2]
[347689685,1736065842238,-500.0,9.999e-05,2]
[347689686,1736065842247,-500.0,9.999e-05,2]
[347689687,1736065842257,-633.26,9.999e-05,2]
[347689688,1736065842266,-500.0,9.999e-05,2]
[347689689,1736065842274,-500.0,9.999e-05,2]
[347689690,1736065842283,-500.0,9.999e-05,2]
[347689691,1736065842292,-500.0,9.999e-05,2]
[347689692,1736065842302,-500.0,9.999e-05,2]
[347689693,1736065842312,-2572.76,9.999e-05,2]
[347689694,1736065842321,-500.0,9.999e-05,2]
[347689695,1736065842330,-500.0,9.999e-05,2]
[347689696,1736065842339,-638.13,9.999e-05,2]
[347689697,1736065842348,-381.49556829,9.999e-05,2]
[347689698,1736065842357,-500.0,9.999e-05,2]
[347689699,1736065842366,-500.0,9.999e-05,2]
[347689700,1736065842376,-500.0,9.999e-05,2]
[347689701,1736065842529,-500.0,9.999e-05,2]
[347689702,1736065842538,-500.0,9.999e-05,2]
[347689703,1736065842547,-500.0,9.999e-05,2]
[347689704,1736065842557,-500.0,9.999e-05,2]
[347689705,1736065842566,-500.0,9.999e-05,2]
[347689706,1736065842575,-500.0,9.999e-05,2]
[347689707,1736065842584,-500.0,9.999e-05,2]
[347689708,1736065842593,-500.0,9.999e-05,2]
[347689709,1736065842602,-500.0,9.999e-05,2]
[347689710,1736065842612,-500.0,9.999e-05,2]
[347689711,1736065842621,-500.0,9.999e-05,2]
[347689712,1736065842631,-1755.46,9.999e-05,2]
[347689713,1736065842640,-500.0,9.999e-05,2]
[347689714,1736065842649,-500.0,9.999e-05,2]
[347689715,1736065842658,-500.0,9.999e-05,2]
[347689716,1736065842666,-500.0,9.999e-05,2]
[347689717,1736065842676,-500.0,9.999e-05,2]
[347689718,1736065842685,-500.0,9.999e-05,2]
[347689719,1736065842694,-500.0,9.999e-05,2]
[347689720,1736065842705,-500.0,9.999e-05,2]
[347689721,1736065842715,-500.0,9.999e-05,2]
[347689722,1736065842724,-500.0,9.999e-05,2]
[347689723,1736065842734,-500.0,9.999e-05,2]
[347689724,1736065842743,-500.0,9.999e-05,2]
[347689725,1736065842753,-500.0,9.999e-05,2]
[347689726,1736065842762,-500.0,9.999e-05,2]
[347689727,1736065842771,-500.0,9.999e-05,2]
[347689728,1736065842782,-500.0,9.999e-05,2]
[347689729,1736065842792,-545.59,9.999e-05,2]
[347689730,1736065842801,-500.0,9.999e-05,2]
[347689731,1736065842810,-500.0,9.999e-05,2]
[347689732,1736065842819,-301.59,9.999e-05,2]
[347689733,1736065842828,-500.0,9.999e-05,2]
[347689734,1736065842838,-500.0,9.999e-05,2]
[347689735,1736065842847,-500.0,9.999e-05,2]
[347689736,1736065842856,-500.0,9.999e-05,2]
[347689737,1736065842865,-500.0,9.999e-05,2]
[347689738,1736065842875,-500.0,9.999e-05,2]
[347689739,1736065842884,-500.0,9.999e-05,2]
[347689740,1736065842895,-500.0,9.999e-05,2]
[347689741,1736065842905,-503.38599611,9.999e-05,2]
[347689743,1736065842914,-500.0,9.999e-05,2]
[347689745,1736065842923,-500.0,9.999e-05,2]
[347689747,1736065842933,-500.0,9.999e-05,2]
[347689749,1736065842943,-500.0,9.999e-05,2]
[347689751,1736065842952,-500.0,9.999e-05,2]
[347689752,1736065842961,-500.0,9.999e-05,2]
[347689753,1736065842970,-553.748142,9.999e-05,2]
[347689755,1736065842979,-500.0,9.999e-05,2]
[347689757,1736065842989,-500.0,9.999e-05,2]
[347689758,1736065842998,-500.0,9.999e-05,2]
[347689759,1736065843006,-500.0,9.999e-05,2]